fUST/lending_fUST_20241105
["ID","MTS","AMOUNT","RATE_DAILY","PERIOD"]
[341312059,1730758246151,-375.77532321,0.00030136,3]
[341312060,1730758246161,-213.29000644,0.00030136,3]
[341312061,1730758246171,-506.68918605,0.00030136,3]
[341312062,1730758246180,-270.85638787,0.00030136,3]
[341312063,1730758246189,-255.78117144,0.00030136,3]
[341312064,1730758246198,-500.0,0.00030286,3]
[341312065,1730758246207,-192.55403828,0.00030286,3]
[341312066,1730758246217,-500.0,0.00030286,3]
[341312067,1730758246226,-159.578214,0.00030374,2]
[341312068,1730758246235,-166.86294551,0.0003041,3]
[341312069,1730758246245,-463.07106435,0.00030967,5]
[341312070,1730758246255,-420.0,0.00031397,2]
[341312071,1730758246264,-166.666666,0.00031673,2]
[341312072,1730758246274,-200.671065,0.00031916,2]
[341312073,1730758246283,-150.0,0.00032,2]
[341312074,1730758246293,-420.0,0.00032015,2]
[341312075,1730758246302,-500.0,0.00032119,3]
[341312076,1730758246312,-500.0,0.00032119,3]
[341312077,1730758246321,-500.0,0.00032119,3]
[341312078,1730758246330,-223.20393185,0.00032119,3]
[341312079,1730758636791,5000.0,0.00033703,30]
[341312080,1730758696407,161.990151,0.00013973,2]
[341312084,1730758805288,255.0478442,0.00018623,2]
[341312105,1730759233112,-166.666666,0.0002645,2]
[341312106,1730759233134,-166.666666,0.00027171,2]
[341312107,1730759233156,-175.51174434,0.0002733,2]
[341312108,1730759239303,159.798272,0.00013973,2]
[341312109,1730759243126,-159.798272,0.00023435,2]
[341312110,1730759243149,-948.36197536,0.0002733,2]
[341312111,1730759243173,-162.213846,0.00027576,2]
[341312112,1730759243195,-162.213846,0.00027714,2]
[341312113,1730759243216,-82.35583991,0.00027803,2]
[341312133,1730759326453,5206.13679754,0.00014,2]
[341312136,1730759329457,13661.18580139,0.00016,7]
[341312137,1730759355092,-300.0,0.00020376,2]
[341312138,1730759355115,-300.0,0.00020376,2]
[341312139,1730759355141,-15574.85624035,0.00020377,2]
[341312140,1730759368135,-7058.56231564,0.00020377,2]
[341312163,1730759432215,-300.0,0.00020376,2]
[341312164,1730759432225,-300.0,0.00020376,2]
[341312165,1730759432236,-316.49643295,0.00020377,2]
[341312166,1730759432246,-2112.29559896,0.00020377,2]
[341312167,1730759432259,-16194.63512108,0.00020377,2]
[341312168,1730759432277,-316.09929999,0.00020377,2]
[341312169,1730759432289,-847.953925,0.00020377,2]
[341312196,1730759438502,-164.01980724,0.00020376,2]
[341312197,1730759438512,-199.64856836,0.00020376,2]
[341312198,1730759438522,-391.5,0.00020376,2]
[341312199,1730759438531,-152.39727109,0.00020376,2]
[341312200,1730759438540,-4620.49129269,0.00020377,2]
[341312208,1730759443640,-879.24848131,0.00020377,2]
[341312209,1730759443674,-23.29513048,0.00020377,2]
[341312228,1730759446538,-31853.35831261,0.00020377,2]
[341312229,1730759446548,-200.67106499,0.000219,2]
[341312230,1730759446559,-1838.50683237,0.00022,2]
[341312231,1730759446569,-160.2371526,0.00022,10]
[341312232,1730759446578,-420.0,0.00022179,2]
[341312233,1730759446587,-420.0,0.00022414,2]
[341312234,1730759446596,-241.85886165,0.00023,2]
[341312235,1730759446606,-428.0,0.00024141,2]
[341312236,1730759446616,-587.0,0.00024655,2]
[341312237,1730759446626,-7458.76110126,0.00025,2]
[341312238,1730759446637,-2876.5405581,0.00025821,2]
[341312239,1730759446647,-250.0,0.00025953,2]
[341312240,1730759446657,-138.01701309,0.00027803,2]
[341312241,1730759446667,-166.253734,0.0002781,2]
[341312242,1730759446677,-166.666666,0.00027892,2]
[341312243,1730759446687,-166.666666,0.00028613,2]
[341312244,1730759446698,-166.666666,0.00029335,2]
[341312245,1730759446708,-299.5780636,0.00029482,2]
[341312246,1730759446718,-500.0,0.0002976,5]
[341312247,1730759446728,-151.0,0.0003,120]
[341312248,1730759446738,-151.0,0.0003,120]
[341312249,1730759446747,-175.64025,0.0003,2]
[341312250,1730759446756,-223.892,0.0003,2]
[341312251,1730759446766,-166.666666,0.00030056,2]
[341312252,1730759446776,-500.0,0.00030136,2]
[341312253,1730759446786,-500.0,0.00030136,3]
[341312254,1730759446796,-500.0,0.00030136,3]
[341312255,1730759446806,-500.0,0.00030136,3]
[341312256,1730759446816,-500.0,0.00030225,3]
[341312257,1730759446826,-276.79606815,0.00030225,3]
[341312258,1730759446835,-500.0,0.00030225,3]
[341312259,1730759446844,-24698.5361711,0.00030226,2]
[341312260,1730759446855,-500.0,0.0003041,3]
[341312261,1730759446866,-500.0,0.0003041,3]
[341312262,1730759446875,-357.38746596,0.00030499,3]
[341312263,1730759446884,-500.0,0.00030499,3]
[341312264,1730759446894,-500.0,0.00030684,3]
[341312265,1730759446903,-500.0,0.00030773,3]
[341312266,1730759446912,-521.74,0.00030958,3]
[341312267,1730759446922,-500.0,0.00031047,3]
[341312268,1730759446936,-500.0,0.00031321,3]
[341312269,1730759446946,-500.0,0.00031595,3]
[341312270,1730759446955,-513.80092781,0.00031869,3]
[341312271,1730759446966,-151.0,0.00032603,120]
[341312272,1730759446976,-250.871886,0.00032877,120]
[341312273,1730759446985,-159.798272,0.00032898,2]
[341312274,1730759446995,-223.892,0.00033275,2]
[341312275,1730759447004,-2005.45567727,0.000333,2]
[341312276,1730759447013,-930.0,0.000334,2]
[341312277,1730759447023,-151.0,0.00033534,120]
[341312278,1730759447032,-1500.0,0.00033703,14]
[341312279,1730759447042,-47410.71329447,0.00033703,5]
[341312280,1730759447051,-24810.46044663,0.00033703,5]
[341312281,1730759447060,-169.62476517,0.00033703,5]
[341312282,1730759447070,-172.88825,0.00034087,2]
[341312283,1730759447080,-1309.25372908,0.00034728,12]
[341312284,1730759447089,-150.0,0.00035,2]
[341312285,1730759447098,-1112.0,0.00035,120]
[341312286,1730759447107,-151.0,0.00035205,120]
[341312287,1730759447117,-500.0,0.0003553,7]
[341312288,1730759447126,-500.0,0.00035608,7]
[341312289,1730759447135,-504.70697877,0.00035768,7]
[341312290,1730759447145,-190.0,0.00035951,7]
[341312291,1730759447154,-500.0,0.00035982,7]
[341312292,1730759447166,-500.0,0.00036303,7]
[341312293,1730759447175,-500.0,0.00036423,7]
[341312294,1730759447185,-500.0,0.00036551,7]
[341312295,1730759447194,-500.0,0.00036566,7]
[341312296,1730759447204,-500.0,0.00036572,7]
[341312297,1730759447216,-500.0,0.00036619,7]
[341312298,1730759447226,-526.33027285,0.00036697,3]
[341312299,1730759447236,-152.17662963,0.0003679,19]
[341312300,1730759447246,-857.05117961,0.00037,7]
[341312301,1730759447256,-151.0,0.00037068,120]
[341312302,1730759447266,-500.0,0.00037325,7]
[341312303,1730759447275,-335.0,0.00037787,7]
[341312304,1730759447289,-151.0,0.00037808,120]
[341312305,1730759447299,-500.0,0.00037815,7]
[341312306,1730759447311,-5034.72997132,0.000382,109]
[341312307,1730759447321,-5034.72997129,0.000382,109]
[341312308,1730759447330,-5034.72997129,0.000382,109]
[341312309,1730759447339,-5034.72997129,0.000382,109]
[341312310,1730759447349,-250.871886,0.00038356,120]
[341312311,1730759447358,-500.0,0.00038673,7]
[341312312,1730759447368,-500.0,0.00038776,7]
[341312313,1730759447378,-5000.0,0.0003895,30]
[341312314,1730759447387,-300.0,0.00039,17]
[341312315,1730759447396,-501.0,0.00039503,43]
[341312316,1730759447405,-6121.67645559,0.000396,2]
[341312317,1730759447414,-1000.0,0.000396,2]
[341312318,1730759447424,-1366.45,0.00039699,120]
[341312319,1730759447433,-500.0,0.00039699,30]
[341312320,1730759447443,-66908.29183295,0.000397,2]
[341312326,1730759720501,170.385245,0.00013973,2]
[341312332,1730760270548,160.036669,0.00013973,2]
[341312333,1730760428125,-300.0,0.00023181,2]
[341312334,1730760428148,-300.0,0.00023181,2]
[341312335,1730760428171,-836.47885302,0.00023182,2]
[341312336,1730760430135,-220.39199676,0.00023182,2]
[341312337,1730760434092,-1790.71620056,0.00023182,2]
[341312346,1730760548127,-183.164383,0.00021918,2]
[341312347,1730760548149,-162.213846,0.00022551,2]
[341312348,1730760548174,-162.213846,0.00022588,2]
[341312349,1730760548197,-162.213846,0.00022626,2]
[341312350,1730760548219,-162.213846,0.00022664,2]
[341312351,1730760548240,-300.0,0.0002318,2]
[341312352,1730760548263,-300.0,0.0002318,2]
[341312353,1730760548285,-749.57313726,0.00023181,2]
[341312354,1730760548307,-500.0,0.00023181,2]
[341312355,1730760548329,-500.0,0.00023181,2]
[341312356,1730760548351,-500.0,0.00023181,2]
[341312357,1730760548374,-500.0,0.00023181,2]
[341312358,1730760548395,-372.43105576,0.00023181,2]
[341312359,1730760548420,-500.0,0.00023181,2]
[341312360,1730760548441,-500.0,0.00023181,2]
[341312361,1730760548464,-500.0,0.00023181,2]
[341312362,1730760548486,-265.32769592,0.00023181,2]
[341312363,1730760548509,-158.15755182,0.00023181,2]
[341312364,1730760548532,-507.6608195,0.00023181,2]
[341312365,1730760548553,-500.0,0.00023181,2]
[341312366,1730760548575,-544.23991034,0.00023181,2]
[341312367,1730760548596,-500.0,0.00023181,2]
[341312368,1730760548622,-500.0,0.00023181,2]
[341312369,1730760548644,-300.35143164,0.00023181,2]
[341312370,1730760548666,-361.10803908,0.00023181,2]
[341312371,1730760548687,-500.0,0.00023181,2]
[341312372,1730760548710,-583.90756383,0.00023181,2]
[341312373,1730760548734,-312.25088713,0.00023181,2]
[341312374,1730760551098,-187.74911287,0.00023181,2]
[341312375,1730760551121,-529.68123374,0.00023181,2]
[341312376,1730760551142,-423.41530813,0.00023181,2]
[341312403,1730760632578,-651.51158033,0.00023122,2]
[341312404,1730760632588,-76.58469187,0.00023181,2]
[341312405,1730760632599,-500.0,0.00023181,2]
[341312406,1730760632608,-152.0,0.00023181,2]
[341312407,1730760632618,-300.0,0.00023181,2]
[341312408,1730760632627,-22032.41294966,0.00023182,2]
[341312409,1730760632637,-3000.0,0.00023222,2]
[341312410,1730760632649,-221.647598,0.00023224,2]
[341312411,1730760632659,-183.164383,0.00023242,2]
[341312412,1730760632669,-3715.6637093,0.00023404,2]
[341312413,1730760632679,-3374.81388061,0.00023643,2]
[341312414,1730760632689,-175.722848,0.00023703,2]
[341312415,1730760632699,-175.722848,0.00023723,2]
[341312416,1730760632708,-175.722848,0.00023743,2]
[341312417,1730760632718,-200.076926,0.00023762,2]
[341312418,1730760632729,-175.722848,0.00023763,2]
[341312419,1730760632739,-175.722848,0.00023782,2]
[341312420,1730760632748,-175.722848,0.00023802,2]
[341312421,1730760632758,-175.722848,0.00023822,2]
[341312422,1730760632769,-500.0,0.00024033,2]
[341312423,1730760632778,-200.076926,0.00024447,2]
[341312424,1730760632788,-500.0,0.0002452,2]
[341312425,1730760632797,-183.164383,0.00024566,2]
[341312426,1730760632807,-500.0,0.00024658,2]
[341312427,1730760632817,-559.87700828,0.00025031,2]
[341312428,1730760632827,-3818.15876765,0.00025031,2]
[341312429,1730760632839,-1181.84123235,0.00025031,2]
[341312430,1730760632849,-163.26806084,0.00025032,2]
[341312431,1730760632859,-719.39630041,0.00025055,2]
[341312432,1730760632871,-2502.73849457,0.00025055,2]
[341312437,1730760638643,-45084.32790165,0.00022,2]
[341312438,1730760638840,-159.60876145,0.00022,2]
[341312445,1730760643897,-408.90419371,0.00022,2]
[341312462,1730760646615,-1652.067385,0.00022,2]
[341312466,1730760770276,167.039,0.00013973,2]
[341312469,1730761300440,160.35605,0.00013973,2]
[341312470,1730761644178,-225.67848689,0.00022,2]
[341312471,1730761745154,-1111.42266953,0.00022,2]
[341312483,1730761792264,165.902535,0.00013973,2]
[341312508,1730761832579,-1357.99060177,0.00022,2]
[341312510,1730761832589,-175.117,0.00022452,2]
[341312512,1730761832598,-128.35619464,0.00024,30]
[341312513,1730761832610,-29.07952015,0.00024,30]
[341312514,1730761832620,-743.22413578,0.00024565,2]
[341312515,1730761832630,-146.29621199,0.00025139,2]
[341312516,1730761832643,-2138.35066501,0.00025139,2]
[341312517,1730761832654,-160.35605,0.00025156,2]
[341312518,1730761832663,-2867.42392835,0.00025198,2]
[341312519,1730761832674,-132.57607165,0.00025198,2]
[341312520,1730761832683,-165.18922582,0.00025313,2]
[341312521,1730761832692,-172.962445,0.00025414,2]
[341312522,1730761832702,-2284.646877,0.00025824,2]
[341312523,1730761832712,-300.0,0.00026508,2]
[341312524,1730761832722,-153.35118122,0.00026509,2]
[341312547,1730761838910,-2131.29569578,0.00026509,2]
[341312548,1730761838920,-500.0,0.00026848,2]
[341312549,1730761838929,-500.0,0.00026848,2]
[341312550,1730761838939,-350.90639465,0.00026848,2]
[341312551,1730761838949,-363.01801343,0.00026848,2]
[341312552,1730761838958,-500.0,0.00026848,2]
[341312553,1730761838968,-500.0,0.00026848,2]
[341312554,1730761838978,-500.0,0.00026848,2]
[341312555,1730761838988,-386.94809174,0.00026848,2]
[341312556,1730761838997,-166.666666,0.00027194,2]
[341312557,1730761839007,-3102.48619871,0.000274,2]
[341312558,1730761839016,-426.72674154,0.00027401,2]
[341312559,1730761839025,-24880.0,0.00027401,2]
[341312560,1730761839035,-165.18922582,0.000276,2]
[341312561,1730761839044,-221.6475987,0.000277,2]
[341312562,1730761839053,-170.764799,0.00027932,2]
[341312563,1730761839062,-166.666666,0.00027935,2]
[341312564,1730761839072,-170.764799,0.00027946,2]
[341312565,1730761839081,-170.764799,0.0002796,2]
[341312566,1730761839180,-170.764799,0.00027974,2]
[341312567,1730761839190,-170.764799,0.00027988,2]
[341312568,1730761839199,-170.764799,0.00028002,2]
[341312569,1730761839209,-170.764799,0.00028016,2]
[341312570,1730761839220,-170.764799,0.0002803,2]
[341312571,1730761839229,-170.764799,0.00028044,2]
[341312572,1730761839238,-170.764799,0.00028058,2]
[341312573,1730761839249,-170.764799,0.00028072,2]
[341312574,1730761839259,-166.666666,0.00028676,2]
[341312575,1730761839270,-420.0,0.00029159,2]
[341312576,1730761839283,-569.99260915,0.00029337,2]
[341312577,1730761839292,-166.666666,0.00029418,2]
[341312578,1730761839301,-172.04175758,0.00029504,2]
[341312579,1730761839311,-235.36125,0.0003,2]
[341312580,1730761839321,-500.0,0.00030136,3]
[341312581,1730761839330,-500.0,0.00030136,3]
[341312582,1730761839340,-166.666666,0.00030159,2]
[341312583,1730761839349,-500.0,0.0003041,3]
[341312584,1730761839358,-500.0,0.0003041,3]
[341312585,1730761839367,-170.826743,0.00030584,2]
[341312586,1730761839377,-500.0,0.00030684,3]
[341312587,1730761839386,-500.0,0.00030684,3]
[341312588,1730761839396,-470.24963046,0.00030804,2]
[341312589,1730761839405,-166.666666,0.00030901,2]
[341312590,1730761839415,-500.0,0.00030958,3]
[341312591,1730761839425,-500.0,0.00030958,3]
[341312592,1730761839434,-3455.83985152,0.00030989,2]
[341312593,1730761839443,-342.89340138,0.0003108,3]
[341312594,1730761839452,-500.0,0.00031232,3]
[341312595,1730761839462,-317.91011957,0.00031232,3]
[341312596,1730761839472,-500.0,0.00031506,3]
[341312597,1730761839481,-172.04175756,0.00031692,2]
[341312598,1730761839491,-500.0,0.0003178,3]
[341312599,1730761839501,-150.0,0.00032,2]
[341312600,1730761839511,-481.0,0.00032075,2]
[341312601,1730761839522,-233.464512,0.00032213,2]
[341312602,1730761839532,-273.227182,0.00032213,2]
[341312603,1730761839541,-432.837588,0.00032213,2]
[341312604,1730761839551,-1507.44764654,0.00032548,2]
[341312643,1730761844110,-23.28256438,0.00032548,2]
[341312672,1730762275187,160.21578,0.00013973,2]
[341312692,1730762794771,165.902535,0.00013973,2]
[341312693,1730762849130,-165.0,0.00025,2]
[341312694,1730762849156,-191.98488344,0.00025056,2]
[341312695,1730762849179,-160.21578,0.00025156,2]
[341312696,1730762849200,-1241.19530555,0.00025866,2]
[341312697,1730762851094,-1758.80469445,0.00025866,2]
[341312698,1730762851115,-165.0,0.0002589,2]
[341312699,1730762851137,-165.884154,0.00027479,2]
[341312700,1730762851161,-300.0,0.00028213,2]
[341312701,1730762851182,-300.0,0.00028213,2]
[341312702,1730762851205,-265.21645464,0.00028214,2]
[341312703,1730762851226,-500.0,0.00028214,2]
[341312704,1730762851247,-274.96222103,0.00028214,2]
[341312705,1730762851269,-2812.62965784,0.00028214,2]
[341312706,1730762902219,14120.9820251,0.0002,2]
[341312707,1730762917718,1517.3067144,0.0002,2]
[341312708,1730762923899,4335.52168819,0.0002,2]
[341312709,1730762925288,294533.0,0.0001999,2]
[341312710,1730762925376,350.43917117,0.0002,2]
[341312711,1730762949094,-3594.77925941,0.00020377,2]
[341312712,1730762974147,-1646.17809112,0.00020377,2]
[341312751,1730763031856,-3345.13270911,0.00020377,2]
[341312752,1730763031866,-161.31618362,0.000209,2]
[341312753,1730763031876,-261.00310387,0.00021,2]
[341312754,1730763031886,-235.21544557,0.00021,2]
[341312756,1730763031895,-19470.03400922,0.00022472,2]
[341312758,1730763031907,-330.0,0.00022472,2]
[341312760,1730763031918,-2612.89511547,0.00022472,2]
[341312779,1730763038377,-2447.07087531,0.00022472,2]
[341312780,1730763038387,-170.826743,0.000228,2]
[341312781,1730763038397,-284.48449436,0.00025,2]
[341312782,1730763038406,-4883.1243343,0.00025,2]
[341312798,1730763045880,-345.00673985,0.00025,2]
[341312810,1730763372736,160.275538,0.00013973,2]
[341312813,1730764050132,-166.405829,0.00023174,2]
[341312814,1730764050154,-75.46032573,0.00023606,2]
[341312820,1730764140703,161.4626,0.00013973,2]
[341312840,1730764232077,-161.4626,0.00022174,2]
[341312842,1730764232087,-1026.18077707,0.00023606,2]
[341312844,1730764232098,-232.379262,0.00023767,2]
[341312846,1730764232108,-1123.8737197,0.00023867,2]
[341312848,1730764232118,-162.213846,0.00024022,2]
[341312849,1730764232128,-162.213846,0.00024142,2]
[341312850,1730764232138,-166.405829,0.00024753,2]
[341312851,1730764232147,-172.04175756,0.0002499,2]
[341312852,1730764232157,-2832.51859375,0.0002499,2]
[341312853,1730764232166,-300.0,0.00024996,2]
[341312854,1730764232176,-300.0,0.00024997,2]
[341312855,1730764232186,-500.0,0.00024998,2]
[341312856,1730764232197,-444.77781266,0.00024998,2]
[341312857,1730764232206,-500.0,0.00024998,2]
[341312858,1730764232216,-500.0,0.00024998,2]
[341312859,1730764232225,-500.0,0.00024998,2]
[341312860,1730764232235,-5000.0,0.00024999,2]
[341312861,1730764232244,-5000.0,0.00024999,2]
[341312862,1730764232254,-1163.26412304,0.00024999,2]
[341312863,1730764232263,-189.65632957,0.00025,2]
[341312864,1730764232272,-5218.24617396,0.00025,2]
[341312900,1730764238283,-15764.52158352,0.00025,2]
[341312905,1730764238315,-48.57055019,0.00025,2]
[341312907,1730764238327,-9602.11401123,0.00025,2]
[341313260,1730764243015,-380.69228397,0.00025,2]
[341313603,1730764246081,-26.87401719,0.00025,2]
[341313800,1730764803608,500.0,0.0001,2]
[341313801,1730764804027,500.0,0.0001,2]
[341313802,1730764804415,500.0,0.0001,2]
[341313803,1730764804839,500.0,0.0001,2]
[341313804,1730765148550,161.4547,0.00013973,2]
[341313805,1730765351153,-1014.19107056,0.00022659,2]
[341313806,1730765351176,-161.4547,0.00022759,2]
[341313807,1730765351198,-166.536247,0.00023739,2]
[341313808,1730765351221,-2225.29495083,0.00024043,2]
[341313856,1730765432175,-2417.45127577,0.00024043,2]
[341313858,1730765432187,-300.0,0.00024998,2]
[341313860,1730765432197,-300.0,0.00024998,2]
[341313862,1730765432206,-3380.03751719,0.00024999,2]
[341314330,1730765443170,-626.27638985,0.00024999,2]
[341314332,1730765443180,-271.64197918,0.00024999,2]
[341314334,1730765443191,-1022.66878185,0.00025,2]
[341314338,1730765443224,-469.7928632,0.00025,2]
[341314351,1730765443332,-271.45596814,0.00025,2]
[341314568,1730765446230,-3623.43352699,0.00025,2]
[341314570,1730765446242,-1544.44300055,0.00025,2]
[341314700,1730765681798,160.698175,0.00013973,2]
[341314701,1730766031561,7616.0,0.00033701,30]
[341314702,1730766239277,161.4468,0.00013973,2]
[341314703,1730766513182,46881.8316663,0.00033701,120]
[341314704,1730766525641,22977.23689957,0.00014,2]
[341314705,1730766526221,18803.46474308,0.0001,2]
[341314706,1730766529730,1000.0,0.0001,2]
[341314713,1730766556128,-300.0,0.00020376,2]
[341314714,1730766556151,-300.0,0.00020376,2]
[341314715,1730766556173,-1853.872764,0.00020377,2]
[341314716,1730766557175,-18188.43623813,0.00020377,2]
[341314717,1730766557196,-2680.27278908,0.000209,2]
[341314718,1730766557216,-1475.50049176,0.00021,2]
[341314719,1730766557345,-10246.96468635,0.00021,2]
[341314720,1730766557367,-420.0,0.00022179,2]
[341314721,1730766557387,-1326.98501535,0.000223,2]
[341314722,1730766557408,-420.0,0.00022414,2]
[341314723,1730766557430,-161.4468,0.00023435,2]
[341314724,1730766557451,-587.0,0.00024141,2]
[341314725,1730766557472,-166.601457,0.00024184,2]
[341314726,1730766557496,-463.54717931,0.00024214,2]
[341314727,1730766557516,-611.164421,0.00024214,2]
[341314728,1730766557538,-500.0,0.00024214,2]
[341314729,1730766557559,-246.90243191,0.00024214,2]
[341314730,1730766557580,-8702.88609998,0.00024215,2]
[341314760,1730766632310,-203.4166257,0.00023563,2]
[341314761,1730766632320,-2680.27278903,0.000239,2]
[341314762,1730766632329,-300.0,0.00024214,2]
[341314763,1730766632338,-300.0,0.00024214,2]
[341314764,1730766632348,-151.0,0.00024215,7]
[341314765,1730766632357,-151.0,0.00024215,7]
[341314766,1730766632367,-151.0,0.00024215,7]
[341314767,1730766632376,-16177.11390002,0.00024215,2]
[341314768,1730766632385,-404.715881,0.00024299,2]
[341314769,1730766632489,-174.775794,0.00024898,2]
[341314770,1730766632503,-598.96637214,0.00024899,2]
[341314771,1730766632512,-12617.71280587,0.00025,2]
[341314772,1730766632521,-151.0,0.00025,7]
[341314773,1730766632530,-151.0,0.00025,7]
[341314774,1730766632539,-5318.15845652,0.0002509,2]
[341314775,1730766632548,-229.18892061,0.00025355,2]
[341314776,1730766632557,-5922.3422156,0.00025355,2]
[341314777,1730766632566,-151.0,0.00025355,7]
[341314778,1730766632575,-151.0,0.00025355,7]
[341314779,1730766632584,-420.0,0.00026253,2]
[341314780,1730766632593,-339.51575511,0.000269,2]
[341314819,1730766638319,-494.15511447,0.000269,2]
[341314832,1730766638482,-1346.5,0.000269,2]
[341315149,1730766646289,-166.601457,0.00025577,2]
[341315151,1730766646299,-500.10191945,0.000269,2]
[341315153,1730766646310,-519.42545675,0.00027003,2]
[341315155,1730766646319,-163.78,0.00027093,3]
[341315157,1730766646328,-151.0,0.00027093,7]
[341315159,1730766646337,-151.0,0.00027093,7]
[341315160,1730766646346,-491.36,0.00027093,3]
[341315162,1730766646355,-151.0,0.00027093,7]
[341315164,1730766646364,-151.0,0.00027093,7]
[341315166,1730766646374,-151.0,0.00027093,7]
[341315168,1730766646383,-151.0,0.00027093,7]
[341315170,1730766646392,-151.0,0.00027093,7]
[341315172,1730766646400,-101.7311668,0.00027093,7]
[341315665,1730766748122,167.280381,0.00013973,2]
[341315666,1730767329242,161.4468,0.00013973,2]
[341315668,1730767608153,-168.238027,0.00022617,2]
[341315669,1730767608175,-379.11389495,0.00022666,2]
[341315670,1730767617441,300.0,0.00020188,2]
[341315671,1730767629098,-848.52932344,0.00022666,2]
[341315672,1730767641380,300.0,0.00020188,3]
[341315673,1730767758103,-3262.04216571,0.00022666,2]
[341315674,1730767758125,-170.826743,0.00022791,2]
[341315675,1730767758147,-301.038672,0.00022811,2]
[341315676,1730767758169,-962.0756104,0.00022815,2]
[341315677,1730767758191,-2687.4628721,0.00022861,2]
[341315678,1730767758213,-379.101898,0.00023066,2]
[341315679,1730767759975,252.734598,0.00022669,2]
[341315680,1730767772076,-252.734598,0.00023354,2]
[341315681,1730767772099,-162.213846,0.00023377,2]
[341315682,1730767772121,-162.213846,0.00023416,2]
[341315683,1730767772142,-300.0,0.00023454,2]
[341315684,1730767772175,-300.0,0.00023454,2]
[341315685,1730767772196,-749.57313726,0.00023455,2]
[341315686,1730767772216,-162.213846,0.00023455,2]
[341315687,1730767772236,-915.10691124,0.00023455,2]
[341315688,1730767793918,8527.03419482,0.00014568,2]
[341315689,1730767794218,6078.52881479,0.00014876,2]
[341315690,1730767794242,2448.50538003,0.00014876,2]
[341315691,1730767794538,8527.03419482,0.00015196,2]
[341315692,1730767794858,8527.03419482,0.00015455,2]
[341315693,1730767795188,3146.25745955,0.00015825,2]
[341315694,1730767795214,5380.77673527,0.00015825,2]
[341315695,1730767795489,8527.03419482,0.00015989,2]
[341315696,1730767795809,8527.03419482,0.00016363,2]
[341315697,1730767796114,8527.03419482,0.00016554,2]
[341315698,1730767796426,8527.03419482,0.0001693,2]
[341315699,1730767797513,8527.03419482,0.00017217,2]
[341315700,1730767797838,8527.03419482,0.00017337,2]
[341315701,1730767798166,2070.08566363,0.00017713,2]
[341315702,1730767798194,6456.94853119,0.00017713,2]
[341315703,1730767798721,8527.03419482,0.00018063,2]
[341315704,1730767799561,8527.03419482,0.00018252,2]
[341315705,1730767799878,8527.03419482,0.00018553,2]
[341315706,1730767800188,8527.03419482,0.00018869,2]
[341315707,1730767800495,8527.03419482,0.00019067,2]
[341315708,1730767800819,8527.03419482,0.00019283,2]
[341315709,1730767801168,8527.03419482,0.00019455,2]
[341315710,1730767801511,8527.03419482,0.00019924,2]
[341315711,1730767801889,8527.03419482,0.00020122,2]
[341315729,1730767838571,-1627.58491051,0.000204,2]
[341315730,1730767838785,-953.84113845,0.000204,2]
[341315731,1730767838924,-94.28103594,0.000204,2]
[341315742,1730767840567,-1919.00606345,0.000204,2]
[341315757,1730767843574,-3932.32104647,0.000204,2]
[341315758,1730767843584,-3000.0,0.00020497,2]
[341315759,1730767843593,-8527.03419482,0.00020565,2]
[341315760,1730767843602,-2642.87972664,0.00020992,2]
[341315813,1730767868877,164.312242,0.00013973,2]
[341315814,1730768381909,161.694855,0.00013973,2]
[341315815,1730768403908,500.0,0.0001,2]
[341315816,1730768404298,500.0,0.0001,2]
[341315817,1730768404898,500.0,0.0001,2]